[Event "44th Chess Olympiad Open 2022"]
[Site "Chennai"]
[Date "2022.08.08"]
[Round "10.21"]
[White "Tin, Jingyao"]
[Black "Peralta, Fernando"]
[Result "1/2-1/2"]
[WhiteElo "2552"]
[BlackElo "2591"]
[Annotator "RC"]
[PlyCount "84"]
[EventDate "2022.??.??"]
[TimeControl "60"]

1. d4 {[%emt 0:00:09]} Nf6 {[%emt 0:00:13]} 2. c4 {[%emt 0:00:18]} e6 {[%emt 0:
00:00]} 3. Nc3 {[%emt 0:00:24]} Bb4 {[%emt 0:00:00]} 4. Qc2 {[%emt 0:00:23]}
O-O {[%emt 0:00:00]} 5. a3 {[%emt 0:00:32]} Bxc3+ {[%emt 0:00:02]} 6. Qxc3 {
[%emt 0:00:09]} d6 {[%emt 0:00:20]} 7. Nf3 {[%emt 0:01:02]} Nbd7 {[%emt 0:00:
00]} 8. g3 {[%emt 0:01:24]} b6 {[%emt 0:01:04]} 9. Bg2 {[%emt 0:00:36]} Bb7 {
[%emt 0:00:06]} 10. O-O {[%emt 0:00:20]} a6 {[%emt 0:07:13]} 11. b3 {[%emt 0:
00:00]} b5 {[%emt 0:09:25]} 12. Bf4 {[%emt 0:15:18]} bxc4 {[%emt 0:02:10]} 13.
bxc4 {[%emt 0:00:26]} Be4 {[%emt 0:04:57]} 14. Bh3 {[%emt 0:06:45]} Rb8 {
[%emt 0:04:55]} 15. Nd2 {[%emt 0:02:17]} Ba8 {[%emt 0:20:07]} 16. f3 {[%emt 0:
00:00]} Nh5 {[%emt 0:04:33]} 17. Be3 {[%emt 0:03:42]} c5 {[%emt 0:00:05]} 18.
Nb3 {[%emt 0:03:03]} cxd4 {[%emt 0:00:43]} 19. Bxd4 {[%emt 0:00:16]} Nhf6 {
[%emt 0:00:59]} 20. e4 {[%emt 0:02:46]} Qc7 {[%emt 0:01:34]} 21. Rfc1 {[%emt 0:
00:00]} e5 {[%emt 0:07:38]} 22. Bf2 {[%emt 0:02:35]} Bc6 {[%emt 0:00:46]} 23.
a4 {[%emt 0:08:36]} Rfd8 {[%emt 0:07:19]} 24. a5 {[%emt 0:03:13]} Rb7 {[%emt 0:
00:00]} 25. Rab1 {[%emt 0:07:52]} Rdb8 {[%emt 0:01:55]} 26. Nd2 {[%emt 0:01:55]
} Nc5 {[%emt 0:01:04]} 27. Rxb7 {[%emt 0:01:01]} Rxb7 {[%emt 0:00:37]} 28. Rb1
{[%emt 0:01:59]} Rxb1+ {[%emt 0:08:10]} 29. Nxb1 {[%emt 0:00:05]} Qb8 {[%emt 0:
00:00]} 30. Nd2 {[%emt 0:01:31]} h6 {[%emt 0:01:50]} 31. Qa3 {[%emt 0:02:53]}
Nfd7 {[%emt 0:00:28]} 32. Bxd7 {[%emt 0:03:20]} Nxd7 {[%emt 0:00:21]} 33. Nf1 {
[%emt 0:02:34]} g6 {[%emt 0:04:49]} 34. Be3 {[%emt 0:03:55]} Kg7 {[%emt 0:00:
00]} 35. Qc1 {[%emt 0:00:36]} h5 {[%emt 0:00:00]} 36. Qd2 {[%emt 0:00:16]} Nc5
{[%emt 0:02:04]} 37. Bxc5 {[%emt 0:02:37]} dxc5 {[%emt 0:00:05]} 38. Ne3 {
[%emt 0:00:09]} Qb1+ {[%emt 0:04:57]} 39. Kf2 {[%emt 0:01:01]} Qa1 {[%emt 0:00:
00]} 40. h4 {[%emt 0:02:16]} Qd4 {[%emt 0:01:02]} 41. Qxd4 {[%emt 0:06:30]}
exd4 {[%emt 0:06:53]} 42. Nd5 {[%emt 0:08:54]} Bxd5 {[%emt 0:04:26]} 1/2-1/2

[Event "44th Chess Olympiad Open 2022"]
[Site "Chennai"]
[Date "2022.08.08"]
[Round "10.21"]
[White "Flores, Diego"]
[Black "Wong, Zhenyong Jayden"]
[Result "1-0"]
[WhiteElo "2528"]
[BlackElo "2163"]
[Annotator "RC"]
[PlyCount "59"]
[EventDate "2022.??.??"]
[TimeControl "60"]

1. c4 {[%emt 0:00:03]} c5 {[%emt 0:00:10]} 2. Nc3 {[%emt 0:00:38]} g6 {[%emt 0:
00:00]} 3. g3 {[%emt 0:00:11]} Bg7 {[%emt 0:00:08]} 4. Bg2 {[%emt 0:00:06]} Nc6
{[%emt 0:00:06]} 5. a3 {[%emt 0:00:07]} d6 {[%emt 0:02:21]} 6. Rb1 {[%emt 0:00:
00]} a5 {[%emt 0:00:37]} 7. Nf3 {[%emt 0:00:25]} e5 {[%emt 0:04:31]} 8. O-O {
[%emt 0:00:28]} Nge7 {[%emt 0:00:11]} 9. d3 {[%emt 0:00:15]} O-O {[%emt 0:00:
00]} 10. Bg5 {[%emt 0:00:12]} f6 {[%emt 0:00:36]} 11. Be3 {[%emt 0:00:35]} Be6
{[%emt 0:02:02]} 12. Ne1 {[%emt 0:00:36]} Rb8 {[%emt 0:21:53]} 13. Nc2 {
[%emt 0:01:28]} Nd4 {[%emt 0:01:04]} 14. b4 {[%emt 0:00:40]} b6 {[%emt 0:12:55]
} 15. Bd2 {[%emt 0:04:24]} Qd7 {[%emt 0:06:42]} 16. bxc5 {[%emt 0:18:09]} bxc5
{[%emt 0:01:39]} 17. Nxd4 {[%emt 0:02:24]} cxd4 {[%emt 0:05:34]} 18. Ne4 {
[%emt 0:00:21]} Rb5 {[%emt 0:12:37]} 19. Rb2 Rxb2 {[%emt 0:00:31]} 20. Qc1 {
[%emt 0:00:15]} Rb1 21. Qxb1 {[%emt 0:00:59]} Qa4 {[%emt 0:00:50]} 22. Nxd6 {
[%emt 0:02:55]} Qxa3 {[%emt 0:01:38]} 23. Nb5 {[%emt 0:00:46]} Qc5 {[%emt 0:00:
00]} 24. Bxa5 {[%emt 0:01:54]} Nc6 {[%emt 0:00:45]} 25. Bc7 {[%emt 0:01:51]}
Rc8 {[%emt 0:01:37]} 26. Bd6 {[%emt 0:01:03]} Qb6 {[%emt 0:00:12]} 27. Nc7 {
[%emt 0:02:29]} Qxb1 {[%emt 0:01:18]} 28. Rxb1 {[%emt 0:00:10]} Bd7 {[%emt 0:
00:00]} 29. Nd5 {[%emt 0:01:23]} Be8 {[%emt 0:03:55]} 30. Nb6 {[%emt 0:00:20]}
1-0

[Event "44th Chess Olympiad Open 2022"]
[Site "Chennai"]
[Date "2022.08.08"]
[Round "10.21"]
[White "Gong, Qianyun"]
[Black "Tristan, Leonardo"]
[Result "1-0"]
[WhiteElo "2275"]
[BlackElo "2558"]
[Annotator "RC"]
[PlyCount "123"]
[EventDate "2022.??.??"]
[TimeControl "60"]

1. e4 {[%emt 0:00:03]} c5 {[%emt 0:00:09]} 2. Nf3 {[%emt 0:00:10]} e6 {[%emt 0:
00:00]} 3. Nc3 {[%emt 0:01:00]} Nc6 {[%emt 0:00:22]} 4. g3 {[%emt 0:02:43]} Nf6
{[%emt 0:05:59]} 5. Bg2 {[%emt 0:03:18]} d5 {[%emt 0:13:55]} 6. exd5 {[%emt 0:
00:00]} exd5 {[%emt 0:03:36]} 7. d4 {[%emt 0:03:25]} Bg4 {[%emt 0:05:26]} 8.
dxc5 {[%emt 0:06:51]} Bxc5 {[%emt 0:00:24]} 9. O-O {[%emt 0:00:24]} O-O {
[%emt 0:00:19]} 10. Bg5 {[%emt 0:18:44]} Ne5 {[%emt 0:33:32]} 11. h3 {[%emt 0:
00:00]} Nxf3+ {[%emt 0:06:29]} 12. Bxf3 {[%emt 0:00:04]} Bxh3 {[%emt 0:00:09]}
13. Nxd5 {[%emt 0:00:26]} Bxf1 {[%emt 0:00:33]} 14. Bxf6 {[%emt 0:00:08]} gxf6
{[%emt 0:03:59]} 15. Qxf1 {[%emt 0:00:08]} Qd6 {[%emt 0:05:46]} 16. Kg2 {
[%emt 0:00:28]} Kh8 {[%emt 0:00:59]} 17. Qd3 {[%emt 0:04:25]} Rg8 {[%emt 0:00:
00]} 18. Rh1 {[%emt 0:00:07]} Rg6 {[%emt 0:03:21]} 19. Be4 {[%emt 0:02:44]} Qe5
{[%emt 0:00:09]} 20. Bxg6 {[%emt 0:04:26]} fxg6 {[%emt 0:00:05]} 21. Nf4 {
[%emt 0:01:53]} Rg8 {[%emt 0:07:35]} 22. Qxg6 {[%emt 0:00:48]} Rg7 {[%emt 0:00:
00]} 23. Qd3 {[%emt 0:00:30]} Qe8 {[%emt 0:04:53]} 24. Rh5 {[%emt 0:11:26]} Bb6
{[%emt 0:02:02]} 25. Rd5 {[%emt 0:01:02]} Qc6 {[%emt 0:01:23]} 26. c4 {[%emt 0:
00:00]} Bc7 {[%emt 0:00:07]} 27. Nh5 {[%emt 0:03:53]} Re7 {[%emt 0:01:08]} 28.
Qf3 {[%emt 0:00:46]} Rf7 {[%emt 0:00:28]} 29. b3 {[%emt 0:00:30]} a6 {[%emt 0:
00:00]} 30. Qf5 {[%emt 0:03:47]} Bb6 {[%emt 0:00:27]} 31. Nf4 {[%emt 0:03:00]}
Re7 {[%emt 0:00:32]} 32. Kf1 {[%emt 0:04:12]} Bc7 {[%emt 0:00:40]} 33. Nh5 {
[%emt 0:01:20]} Re6 {[%emt 0:00:41]} 34. Qg4 {[%emt 0:00:17]} Re7 {[%emt 0:00:
00]} 35. Qc8+ {[%emt 0:02:41]} Re8 {[%emt 0:00:05]} 36. Qd7 {[%emt 0:00:31]}
Qxd7 {[%emt 0:00:19]} 37. Rxd7 {[%emt 0:00:03]} Be5 {[%emt 0:00:05]} 38. Rxb7 {
[%emt 0:00:13]} Rd8 {[%emt 0:01:04]} 39. Rb6 {[%emt 0:01:30]} a5 {[%emt 0:00:
00]} 40. Ra6 {[%emt 0:03:13]} Bc3 {[%emt 0:00:57]} 41. Nxf6 {[%emt 0:31:10]}
Rd1+ {[%emt 0:05:46]} 42. Kg2 {[%emt 0:00:00]} Ra1 {[%emt 0:00:43]} 43. Nd5 {
[%emt 0:00:00]} Be1 {[%emt 0:00:58]} 44. Re6 {[%emt 0:00:00]} Rd1 {[%emt 0:00:
00]} 45. Re2 {[%emt 0:00:00]} Kg7 {[%emt 0:00:41]} 46. a3 {[%emt 0:00:00]} Kf7
{[%emt 0:00:37]} 47. b4 {[%emt 0:00:00]} a4 {[%emt 0:03:33]} 48. Nb6 {[%emt 0:
00:00]} Bd2 {[%emt 0:01:34]} 49. Nxa4 {[%emt 0:00:00]} Bc1 {[%emt 0:00:06]} 50.
Ra2 {[%emt 0:00:00]} Rd3 {[%emt 0:02:27]} 51. Nc5 {[%emt 0:00:00]} Rc3 {
[%emt 0:00:18]} 52. Ne4 {[%emt 0:00:00]} Rb3 {[%emt 0:00:11]} 53. b5 {[%emt 0:
00:00]} Bxa3 {[%emt 0:01:43]} 54. b6 {[%emt 0:00:00]} Ke7 {[%emt 0:06:15]} 55.
c5 {[%emt 0:00:00]} Kd7 {[%emt 0:00:42]} 56. Rd2+ {[%emt 0:00:00]} Kc8 {
[%emt 0:00:22]} 57. Rd6 {[%emt 0:00:00]} Rb4 {[%emt 0:01:37]} 58. Rc6+ {
[%emt 0:00:00]} Kd7 {[%emt 0:00:31]} 59. Rc7+ {[%emt 0:00:00]} Kd8 {[%emt 0:00:
00]} 60. Nd6 {[%emt 0:00:00]} Rb3 {[%emt 0:03:57]} 61. Rxh7 {[%emt 0:00:44]}
Bb2 {[%emt 0:00:14]} 62. c6 {[%emt 0:00:53]} 1-0

[Event "44th Chess Olympiad Open 2022"]
[Site "Chennai"]
[Date "2022.08.08"]
[Round "10.22"]
[White "Quesada Perez, Yasser"]
[Black "Ferreira, Jorge Viterbo"]
[Result "1/2-1/2"]
[WhiteElo "2568"]
[BlackElo "2499"]
[Annotator "RC"]
[PlyCount "73"]
[EventDate "2022.??.??"]
[TimeControl "60"]

1. d4 {[%emt 0:00:03]} d5 {[%emt 0:00:27]} 2. Bf4 {[%emt 0:00:06]} Nf6 {
[%emt 0:00:48]} 3. e3 {[%emt 0:00:05]} e6 {[%emt 0:00:35]} 4. Nf3 {[%emt 0:00:
00]} Bd6 {[%emt 0:00:08]} 5. c3 {[%emt 0:03:02]} O-O {[%emt 0:04:09]} 6. Bd3 {
[%emt 0:01:47]} b6 {[%emt 0:01:47]} 7. Qe2 {[%emt 0:00:28]} Bxf4 {[%emt 0:00:
00]} 8. exf4 {[%emt 0:00:04]} a5 {[%emt 0:00:13]} 9. O-O {[%emt 0:03:07]} Ba6 {
[%emt 0:00:11]} 10. Bxa6 {[%emt 0:00:14]} Nxa6 {[%emt 0:00:10]} 11. Ne5 {
[%emt 0:00:18]} Qc8 {[%emt 0:05:35]} 12. Nd2 {[%emt 0:02:13]} Qb7 {[%emt 0:00:
00]} 13. h4 {[%emt 0:01:34]} c5 {[%emt 0:05:37]} 14. h5 {[%emt 0:05:30]} cxd4 {
[%emt 0:12:21]} 15. cxd4 {[%emt 0:00:23]} Rfc8 {[%emt 0:02:28]} 16. Rac1 {
[%emt 0:03:06]} Rxc1 {[%emt 0:12:42]} 17. Rxc1 {[%emt 0:00:12]} Rc8 {[%emt 0:
00:00]} 18. Rc3 {[%emt 0:02:54]} Rxc3 {[%emt 0:06:06]} 19. bxc3 {[%emt 0:00:10]
} Nc7 {[%emt 0:00:16]} 20. h6 {[%emt 0:09:27]} gxh6 {[%emt 0:07:20]} 21. Qd3 {
[%emt 0:06:35]} Nce8 {[%emt 0:02:08]} 22. Qh3 {[%emt 0:14:04]} Kg7 {[%emt 0:00:
00]} 23. Nf1 {[%emt 0:07:47]} Qe7 {[%emt 0:04:18]} 24. Ne3 {[%emt 0:04:29]} Nd6
{[%emt 0:03:17]} 25. Qh4 {[%emt 0:04:57]} Ng8 {[%emt 0:01:28]} 26. Qg4+ {
[%emt 0:01:08]} Kf8 {[%emt 0:00:26]} 27. f5 {[%emt 0:01:42]} Nxf5 {[%emt 0:00:
00]} 28. Nxf5 {[%emt 0:00:05]} exf5 {[%emt 0:00:06]} 29. Qxf5 {[%emt 0:00:06]}
Nf6 {[%emt 0:01:05]} 30. Qf4 {[%emt 0:06:10]} Kg7 {[%emt 0:00:20]} 31. f3 {
[%emt 0:04:12]} Qa3 {[%emt 0:04:33]} 32. Qd2 {[%emt 0:01:45]} Qe7 {[%emt 0:00:
00]} 33. Qb2 {[%emt 0:07:18]} Nd7 {[%emt 0:00:54]} 34. Nxd7 {[%emt 0:08:14]}
Qe1+ {[%emt 0:00:09]} 35. Kh2 {[%emt 0:00:04]} Qh4+ {[%emt 0:00:04]} 36. Kg1 {
[%emt 0:00:02]} Qe1+ {[%emt 0:00:06]} 37. Kh2 {[%emt 0:00:05]} 1/2-1/2

[Event "44th Chess Olympiad Open 2022"]
[Site "Chennai"]
[Date "2022.08.08"]
[Round "10.22"]
[White "Ortiz Suarez, Isan Reynaldo"]
[Black "Veiga, Jose Francisco R P "]
[Result "1-0"]
[WhiteElo "2526"]
[BlackElo "2378"]
[Annotator "RC"]
[PlyCount "119"]
[EventDate "2022.??.??"]
[TimeControl "60"]

1. e4 {[%emt 0:00:03]} e5 {[%emt 0:00:13]} 2. Nf3 {[%emt 0:00:09]} Nc6 {
[%emt 0:00:17]} 3. Bb5 {[%emt 0:00:06]} a6 {[%emt 0:00:30]} 4. Ba4 {[%emt 0:00:
00]} Nf6 {[%emt 0:00:07]} 5. O-O {[%emt 0:00:16]} Be7 {[%emt 0:00:31]} 6. Re1 {
[%emt 0:00:09]} b5 {[%emt 0:00:15]} 7. Bb3 {[%emt 0:00:08]} d6 {[%emt 0:00:17]}
8. c3 {[%emt 0:00:07]} O-O {[%emt 0:00:43]} 9. h3 {[%emt 0:00:08]} Nb8 {
[%emt 0:00:44]} 10. d4 {[%emt 0:00:10]} Nbd7 {[%emt 0:00:27]} 11. Nbd2 {
[%emt 0:00:08]} c5 {[%emt 0:01:01]} 12. Bc2 {[%emt 0:01:52]} Re8 {[%emt 0:00:
00]} 13. d5 {[%emt 0:10:34]} c4 {[%emt 0:03:22]} 14. b3 {[%emt 0:01:40]} cxb3 {
[%emt 0:08:02]} 15. axb3 {[%emt 0:00:06]} Qc7 {[%emt 0:04:18]} 16. Nb1 {
[%emt 0:03:28]} Bd8 {[%emt 0:05:52]} 17. Bd2 {[%emt 0:05:43]} Qb8 {[%emt 0:00:
00]} 18. Na3 {[%emt 0:01:03]} Nb6 {[%emt 0:10:21]} 19. Bd3 {[%emt 0:01:37]} Bd7
{[%emt 0:05:13]} 20. Nh2 {[%emt 0:05:44]} Qb7 {[%emt 0:09:20]} 21. Nf1 {
[%emt 0:01:59]} g6 {[%emt 0:01:34]} 22. Ne3 {[%emt 0:03:32]} Nh5 {[%emt 0:00:
00]} 23. Bf1 {[%emt 0:08:17]} Ng7 {[%emt 0:01:14]} 24. c4 {[%emt 0:21:26]} b4 {
[%emt 0:01:20]} 25. Bxb4 {[%emt 0:02:04]} Nxc4 {[%emt 0:00:53]} 26. Nec2 {
[%emt 0:00:04]} Nxa3 {[%emt 0:04:24]} 27. Rxa3 {[%emt 0:07:41]} a5 {[%emt 0:00:
00]} 28. Qa1 {[%emt 0:03:00]} Rc8 {[%emt 0:04:10]} 29. Bc3 {[%emt 0:01:20]} f5
{[%emt 0:06:21]} 30. Ne3 {[%emt 0:00:14]} fxe4 {[%emt 0:00:34]} 31. Bxa5 {
[%emt 0:01:51]} Be7 {[%emt 0:08:01]} 32. Bc3 {[%emt 0:04:50]} Ra8 {[%emt 0:00:
00]} 33. Ba6 {[%emt 0:00:53]} Qb8 {[%emt 0:02:04]} 34. Bc4 {[%emt 0:00:28]}
Rxa3 {[%emt 0:02:14]} 35. Qxa3 {[%emt 0:00:06]} Nf5 {[%emt 0:00:31]} 36. Bxe5 {
[%emt 0:01:24]} Nxe3 {[%emt 0:04:09]} 37. Rxe3 {[%emt 0:00:29]} Bf8 {[%emt 0:
00:00]} 38. Ba1 {[%emt 0:02:51]} Qd8 {[%emt 0:01:02]} 39. Qb2 {[%emt 0:05:38]}
Qh4 {[%emt 0:00:20]} 40. Qd4 {[%emt 0:00:50]} Re5 {[%emt 0:01:17]} 41. Qa7 {
[%emt 0:36:57]} Re7 {[%emt 0:01:29]} 42. Bd4 {[%emt 0:00:00]} Rf7 {[%emt 0:00:
00]} 43. Rg3 {[%emt 0:00:00]} Qe7 {[%emt 0:03:08]} 44. Qa8 {[%emt 0:09:09]} Bf5
{[%emt 0:05:36]} 45. b4 {[%emt 0:00:00]} Qh4 {[%emt 0:01:24]} 46. Rc3 {[%emt 0:
00:00]} e3 {[%emt 0:01:59]} 47. Bxe3 {[%emt 0:00:00]} Rc7 {[%emt 0:00:08]} 48.
Qa2 {[%emt 0:00:00]} Bg7 {[%emt 0:01:27]} 49. Rc1 {[%emt 0:00:00]} Be5 {
[%emt 0:09:23]} 50. Bf1 {[%emt 0:00:00]} Rxc1 {[%emt 0:00:29]} 51. Bxc1 {
[%emt 0:00:00]} Qxb4 {[%emt 0:00:12]} 52. Qa8+ {[%emt 0:00:00]} Kg7 {[%emt 0:
00:00]} 53. Qa7+ {[%emt 0:00:00]} Kg8 {[%emt 0:01:13]} 54. Bh6 {[%emt 0:00:00]}
Qc3 {[%emt 0:02:37]} 55. Qe7 {[%emt 0:00:00]} Qc8 {[%emt 0:00:05]} 56. Bb5 {
[%emt 0:00:00]} Qa8 {[%emt 0:00:30]} 57. f4 {[%emt 0:00:00]} Be4 {[%emt 0:00:
00]} 58. fxe5 {[%emt 0:00:00]} Qa1+ {[%emt 0:00:05]} 59. Bf1 {[%emt 0:00:00]}
Qd4+ {[%emt 0:00:20]} 60. Kh1 {[%emt 0:00:00]} 1-0

[Event "44th Chess Olympiad Open 2022"]
[Site "Chennai"]
[Date "2022.08.08"]
[Round "10.22"]
[White "Sousa, Andre Ventura"]
[Black "Albornoz Cabrera, Carlos Daniel"]
[Result "0-1"]
[WhiteElo "2420"]
[BlackElo "2566"]
[Annotator "RC"]
[PlyCount "90"]
[EventDate "2022.??.??"]
[TimeControl "60"]

1. d4 {[%emt 0:00:03]} Nf6 {[%emt 0:00:07]} 2. c4 {[%emt 0:00:08]} e6 {[%emt 0:
00:00]} 3. Nf3 {[%emt 0:00:07]} d5 {[%emt 0:00:08]} 4. Nc3 {[%emt 0:00:04]} c5
{[%emt 0:00:06]} 5. cxd5 {[%emt 0:00:15]} Nxd5 {[%emt 0:00:05]} 6. e4 {[%emt 0:
00:00]} Nxc3 {[%emt 0:00:06]} 7. bxc3 {[%emt 0:00:04]} cxd4 {[%emt 0:00:07]} 8.
cxd4 {[%emt 0:00:03]} Bb4+ {[%emt 0:00:06]} 9. Bd2 {[%emt 0:00:03]} Bxd2+ {
[%emt 0:00:06]} 10. Qxd2 {[%emt 0:00:03]} O-O {[%emt 0:00:07]} 11. Bc4 {
[%emt 0:00:31]} Nd7 {[%emt 0:00:07]} 12. O-O {[%emt 0:00:55]} b6 {[%emt 0:00:
00]} 13. Rfe1 {[%emt 0:02:19]} Bb7 {[%emt 0:00:06]} 14. Rad1 {[%emt 0:00:20]}
Rc8 {[%emt 0:00:19]} 15. Bd3 {[%emt 0:01:39]} Nf6 {[%emt 0:11:10]} 16. h3 {
[%emt 0:11:24]} h6 {[%emt 0:00:00]} 17. Re3 {[%emt 0:01:03]} Qc7 {[%emt 0:00:
00]} 18. Bb1 {[%emt 0:05:41]} b5 {[%emt 0:19:01]} 19. Ne5 {[%emt 0:19:08]} Kh8
{[%emt 0:06:05]} 20. Qb2 {[%emt 0:10:36]} a6 {[%emt 0:03:12]} 21. Rde1 {
[%emt 0:06:15]} Qa5 {[%emt 0:06:03]} 22. Kf1 {[%emt 0:12:13]} Kg8 {[%emt 0:00:
00]} 23. Rg3 {[%emt 0:03:31]} Nh5 {[%emt 0:12:23]} 24. Rf3 {[%emt 0:02:58]} Rc7
{[%emt 0:05:30]} 25. d5 {[%emt 0:07:27]} exd5 {[%emt 0:06:37]} 26. Ng4 {
[%emt 0:00:13]} g6 {[%emt 0:11:26]} 27. exd5 {[%emt 0:08:56]} Bxd5 {[%emt 0:00:
00]} 28. Bxg6 {[%emt 0:00:29]} fxg6 {[%emt 0:00:01]} 29. Rxf8+ {[%emt 0:01:03]}
Kxf8 {[%emt 0:00:02]} 30. Qh8+ {[%emt 0:00:10]} Bg8 {[%emt 0:00:11]} 31. Qxh6+
{[%emt 0:03:45]} Ng7 {[%emt 0:03:19]} 32. Qf4+ {[%emt 0:01:05]} Nf5 {[%emt 0:
00:00]} 33. Qe5 {[%emt 0:01:54]} Qc3 {[%emt 0:01:34]} 34. Qe8+ {[%emt 0:00:19]}
Kg7 {[%emt 0:00:01]} 35. Rd1 {[%emt 0:01:08]} Re7 {[%emt 0:01:06]} 36. Qd8 {
[%emt 0:00:03]} Bxa2 {[%emt 0:01:29]} 37. Kg1 {[%emt 0:00:18]} Re1+ {[%emt 0:
00:00]} 38. Rxe1 {[%emt 0:00:03]} Qxe1+ {[%emt 0:00:04]} 39. Kh2 {[%emt 0:00:
00]} Qe7 {[%emt 0:00:39]} 40. Qa5 {[%emt 0:00:55]} Qd6+ {[%emt 0:00:16]} 41.
Kg1 {[%emt 0:30:20]} Bf7 {[%emt 0:31:03]} 42. Qa1+ {[%emt 0:00:18]} Qd4 {
[%emt 0:02:02]} 43. Qa5 {[%emt 0:01:43]} b4 {[%emt 0:00:00]} 44. Ne5 {[%emt 0:
00:00]} b3 {[%emt 0:01:19]} 45. Qc7 {[%emt 0:00:03]} Nd6 {[%emt 0:00:52]} 0-1

[Event "44th Chess Olympiad Open 2022"]
[Site "Chennai"]
[Date "2022.08.08"]
[Round "10.22"]
[White "Santos, Jose Guilherme B Li"]
[Black "Almeida Quintana, Omar"]
[Result "1/2-1/2"]
[WhiteElo "2361"]
[BlackElo "2523"]
[Annotator "RC"]
[PlyCount "109"]
[EventDate "2022.??.??"]
[TimeControl "60"]

1. e4 {[%emt 0:00:13]} d6 {[%emt 0:00:51]} 2. d4 {[%emt 0:02:10]} Nf6 {[%emt 0:
00:00]} 3. Nc3 {[%emt 0:00:07]} e5 {[%emt 0:02:06]} 4. Nf3 {[%emt 0:00:40]}
Nbd7 {[%emt 0:00:09]} 5. g3 {[%emt 0:00:24]} c6 {[%emt 0:00:14]} 6. Bg2 {
[%emt 0:00:07]} b5 {[%emt 0:00:13]} 7. a3 {[%emt 0:01:12]} Bb7 {[%emt 0:00:15]}
8. O-O {[%emt 0:00:28]} Be7 {[%emt 0:00:36]} 9. Re1 {[%emt 0:00:03]} O-O {
[%emt 0:00:08]} 10. Nh4 {[%emt 0:12:25]} g6 {[%emt 0:01:17]} 11. h3 {[%emt 0:
00:00]} Re8 {[%emt 0:02:58]} 12. Bh6 {[%emt 0:01:36]} a5 {[%emt 0:14:05]} 13.
d5 {[%emt 0:25:40]} cxd5 {[%emt 0:12:30]} 14. exd5 {[%emt 0:00:05]} b4 {
[%emt 0:00:06]} 15. axb4 {[%emt 0:01:29]} axb4 {[%emt 0:00:07]} 16. Na2 {
[%emt 0:00:02]} Qb6 {[%emt 0:02:33]} 17. Qd2 {[%emt 0:03:40]} b3 {[%emt 0:00:
00]} 18. cxb3 {[%emt 0:00:23]} Nc5 {[%emt 0:06:08]} 19. Qb4 {[%emt 0:10:50]}
Bd8 {[%emt 0:08:38]} 20. Be3 {[%emt 0:08:32]} Qxb4 {[%emt 0:09:04]} 21. Nxb4 {
[%emt 0:00:20]} Ba5 {[%emt 0:00:06]} 22. Rxa5 {[%emt 0:13:06]} Rxa5 {[%emt 0:
00:00]} 23. Nc6 {[%emt 0:00:01]} Bxc6 {[%emt 0:03:26]} 24. dxc6 {[%emt 0:03:45]
} Nxb3 {[%emt 0:06:07]} 25. Rd1 {[%emt 0:00:04]} d5 {[%emt 0:02:03]} 26. Bg5 {
[%emt 0:00:20]} Kg7 {[%emt 0:01:49]} 27. Bxf6+ {[%emt 0:01:09]} Kxf6 {[%emt 0:
00:00]} 28. Bxd5 {[%emt 0:01:59]} Nd4 {[%emt 0:00:21]} 29. Be4 {[%emt 0:01:13]}
Ra4 {[%emt 0:05:47]} 30. Kg2 {[%emt 0:02:34]} Rc4 {[%emt 0:00:41]} 31. b3 {
[%emt 0:01:20]} Rc3 {[%emt 0:01:50]} 32. b4 {[%emt 0:00:47]} Nxc6 {[%emt 0:00:
00]} 33. b5 {[%emt 0:01:13]} Nd4 {[%emt 0:00:50]} 34. b6 {[%emt 0:00:04]} Rb3 {
[%emt 0:05:42]} 35. b7 {[%emt 0:02:50]} g5 {[%emt 0:00:22]} 36. Nf3 {[%emt 0:
00:00]} Nxf3 {[%emt 0:00:08]} 37. Bd5 {[%emt 0:00:31]} Rb4 {[%emt 0:03:35]} 38.
Bc6 {[%emt 0:00:27]} Nd4 {[%emt 0:06:14]} 39. Bxe8 {[%emt 0:00:13]} Rxb7 {
[%emt 0:00:01]} 40. Bc6 {[%emt 0:00:18]} Rb4 {[%emt 0:00:35]} 41. Be4 {[%emt 0:
00:00]} h5 {[%emt 0:30:20]} 42. Ra1 {[%emt 0:00:00]} h4 {[%emt 0:00:00]} 43.
Ra6+ {[%emt 0:00:00]} Kg7 {[%emt 0:00:00]} 44. Ra7 {[%emt 0:00:00]} hxg3 {
[%emt 0:00:00]} 45. Bd5 {[%emt 0:00:00]} gxf2 {[%emt 0:00:00]} 46. Rxf7+ {
[%emt 0:00:00]} Kg6 {[%emt 0:00:00]} 47. Rxf2 {[%emt 0:00:00]} Nf5 {[%emt 0:00:
00]} 48. Bf7+ {[%emt 0:00:00]} Kf6 {[%emt 0:00:00]} 49. Bh5 {[%emt 0:00:00]}
Rf4 {[%emt 0:00:00]} 50. Ra2 {[%emt 0:00:00]} e4 {[%emt 0:00:00]} 51. Ra5 {
[%emt 0:00:00]} e3 {[%emt 0:00:00]} 52. Bg4 {[%emt 0:00:13]} Nh4+ {[%emt 0:00:
00]} 53. Kg3 {[%emt 0:02:18]} Rd4 {[%emt 0:01:02]} 54. Ra6+ {[%emt 0:00:33]}
Ke5 {[%emt 0:00:01]} 55. Re6+ {[%emt 0:00:19]} 1/2-1/2

[Event "44th Chess Olympiad Open 2022"]
[Site "Chennai"]
[Date "2022.08.08"]
[Round "10.23"]
[White "Dragnev, Valentin"]
[Black "Fluvia Poyatos, Jordi"]
[Result "1/2-1/2"]
[WhiteElo "2557"]
[BlackElo "2451"]
[Annotator "RC"]
[PlyCount "86"]
[EventDate "2022.??.??"]
[TimeControl "60"]

1. e4 {[%emt 0:00:07]} c6 {[%emt 0:00:24]} 2. d4 {[%emt 0:00:55]} d5 {[%emt 0:
00:00]} 3. e5 {[%emt 0:00:30]} c5 {[%emt 0:00:39]} 4. Nf3 {[%emt 0:00:38]} cxd4
{[%emt 0:00:36]} 5. Qxd4 {[%emt 0:00:53]} Nc6 {[%emt 0:01:15]} 6. Qf4 {[%emt 0:
00:00]} e6 {[%emt 0:00:20]} 7. Bd3 {[%emt 0:00:55]} Nb4 {[%emt 0:01:36]} 8. Nc3
{[%emt 0:00:33]} Bd7 {[%emt 0:01:41]} 9. O-O {[%emt 0:01:22]} Nxd3 {[%emt 0:00:
00]} 10. cxd3 {[%emt 0:00:16]} Ne7 {[%emt 0:05:26]} 11. h4 {[%emt 0:00:52]} Ng6
{[%emt 0:10:40]} 12. Qg3 {[%emt 0:02:58]} h5 {[%emt 0:01:17]} 13. Ne2 {[%emt 0:
00:00]} Qb6 {[%emt 0:29:38]} 14. Be3 {[%emt 0:30:38]} Qxb2 {[%emt 0:04:16]} 15.
Nfd4 {[%emt 0:02:52]} Qa3 {[%emt 0:08:41]} 16. Nf4 {[%emt 0:11:15]} Nxf4 {
[%emt 0:04:42]} 17. Bxf4 {[%emt 0:00:17]} g6 {[%emt 0:06:45]} 18. Rac1 {
[%emt 0:09:26]} Be7 {[%emt 0:00:00]} 19. Bg5 {[%emt 0:03:04]} Bxg5 {[%emt 0:00:
00]} 20. Qxg5 {[%emt 0:00:13]} Qxd3 {[%emt 0:03:36]} 21. Rfd1 {[%emt 0:02:01]}
Qa3 {[%emt 0:01:02]} 22. Rc7 {[%emt 0:00:39]} Qa4 {[%emt 0:00:55]} 23. Rd3 {
[%emt 0:08:16]} Rc8 {[%emt 0:01:08]} 24. Rxb7 {[%emt 0:00:00]} O-O {[%emt 0:00:
00]} 25. Qh6 {[%emt 0:09:25]} Rb8 {[%emt 0:02:42]} 26. Rbb3 {[%emt 0:04:03]}
Rxb3 {[%emt 0:02:21]} 27. axb3 {[%emt 0:00:26]} Qb4 {[%emt 0:00:28]} 28. Nf3 {
[%emt 0:01:39]} Rc8 {[%emt 0:00:20]} 29. Rd4 {[%emt 0:00:49]} Qf8 {[%emt 0:00:
00]} 30. Qe3 {[%emt 0:01:24]} Qc5 {[%emt 0:00:41]} 31. Kh2 {[%emt 0:00:15]} Qc1
{[%emt 0:00:38]} 32. Rd2 {[%emt 0:00:20]} Qc5 {[%emt 0:02:16]} 33. Qg5 {
[%emt 0:02:34]} Be8 {[%emt 0:01:14]} 34. Kg3 {[%emt 0:02:18]} Rc7 {[%emt 0:00:
00]} 35. Rd4 {[%emt 0:00:50]} Qe7 {[%emt 0:00:30]} 36. Qe3 {[%emt 0:00:21]} a5
{[%emt 0:00:28]} 37. Qd2 {[%emt 0:01:08]} Qc5 {[%emt 0:00:26]} 38. Rd3 {
[%emt 0:01:00]} Qa3 {[%emt 0:01:06]} 39. Qe3 {[%emt 0:01:01]} Qc5 {[%emt 0:00:
00]} 40. Qg5 {[%emt 0:00:29]} Qe7 {[%emt 0:00:28]} 41. Qd2 {[%emt 0:02:57]} Qc5
{[%emt 0:06:54]} 42. Qg5 {[%emt 0:08:01]} Qe7 {[%emt 0:00:58]} 43. Qd2 {
[%emt 0:06:42]} Qc5 {[%emt 0:00:26]} 1/2-1/2